bitfinex-derivatives/quotes_BTCF0:USTF0_20250902
["timestamp","ask_amount","ask_price","bid_price","bid_amount"]
[1756795681137,0.57575918,110470.0,110460.0,0.44943]
[1756795681639,0.342,110470.0,110460.0,0.44943]
[1756795681944,0.57575918,110470.0,110460.0,0.53038033]
[1756795682640,0.57575918,110470.0,110460.0,0.44943]
[1756795684338,0.57575918,110470.0,110460.0,0.53038033]
[1756795685936,0.342,110470.0,110460.0,0.53038033]
[1756795686137,0.342,110470.0,110460.0,0.829042]
[1756795686435,0.342,110470.0,110460.0,0.93318918]
[1756795687333,0.341,110470.0,110460.0,1.01413951]
[1756795687536,0.34,110470.0,110460.0,1.01513951]
[1756795687740,0.34,110470.0,110460.0,1.24889869]
[1756795687945,0.34,110470.0,110460.0,1.01513951]
[1756795689132,0.34,110470.0,110460.0,1.01613951]
[1756795689744,0.34,110470.0,110460.0,1.10665991]
[1756795689942,0.34,110470.0,110460.0,1.34041909]
[1756795690140,0.34,110470.0,110460.0,1.37244807]
[1756795690942,0.34,110470.0,110460.0,1.37344807]
[1756795691144,0.34,110470.0,110460.0,2.21860807]
[1756795691640,0.34,110470.0,110460.0,1.98484889]
[1756795692248,0.34,110470.0,110460.0,2.10562876]
[1756795692748,0.34,110470.0,110460.0,2.21860807]
[1756795693739,0.34,110470.0,110460.0,1.37344807]
[1756795694046,0.34,110470.0,110460.0,2.21856807]
[1756795696152,0.34,110470.0,110460.0,2.18654759]
[1756795696345,0.34,110470.0,110460.0,2.10558876]
[1756795697547,0.16,110470.0,110460.0,2.10315876]
[1756795698547,0.16,110470.0,110460.0,2.21613807]
[1756795701461,0.16,110470.0,110460.0,2.21598675]
[1756795702847,0.23368352,110500.0,110490.0,0.08068]
[1756795703052,0.37,110500.0,110490.0,1.58484238]
[1756795703557,0.37,110500.0,110490.0,1.35115886]
[1756795703860,0.37,110500.0,110490.0,1.58484238]
[1756795704061,0.372,110500.0,110490.0,1.52012352]
[1756795704261,0.372,110500.0,110490.0,1.52464352]
[1756795704656,0.373,110500.0,110490.0,1.52464352]
[1756795704852,0.374,110500.0,110490.0,1.52464352]
[1756795705157,0.372,110500.0,110490.0,1.29096]
[1756795705360,0.372,110500.0,110490.0,1.52464352]
[1756795705561,0.372,110500.0,110490.0,1.53355092]
[1756795706162,0.372,110500.0,110490.0,1.59823216]
[1756795706364,0.371,110500.0,110490.0,1.53355092]
[1756795706664,0.371,110500.0,110490.0,1.59823431]
[1756795706862,0.371,110500.0,110490.0,1.53355092]
[1756795707167,0.371,110500.0,110490.0,1.59823066]
[1756795708764,0.60468352,110500.0,110490.0,1.59823066]
[1756795709267,0.60468352,110500.0,110490.0,1.58916326]
[1756795710569,0.60468352,110500.0,110490.0,1.35547974]
[1756795710767,0.60468352,110500.0,110490.0,1.58916326]
[1756795711664,0.83836704,110500.0,110490.0,0.51067974]
[1756795711868,0.83836704,110500.0,110490.0,1.35539974]
[1756795713271,0.83836704,110500.0,110490.0,0.51067974]
[1756795713570,0.371,110500.0,110490.0,0.51067974]
[1756795713870,0.83836704,110500.0,110490.0,0.51067974]
[1756795716164,0.83836704,110500.0,110490.0,0.446]
[1756795716866,0.371,110500.0,110490.0,0.446]
[1756795717071,0.83836704,110500.0,110490.0,0.446]
[1756795717473,0.371,110500.0,110490.0,0.446]
[1756795717678,0.83836704,110500.0,110490.0,0.51080132]
[1756795721276,0.83836704,110500.0,110490.0,0.446]
[1756795723577,0.83836704,110500.0,110490.0,0.52689857]
[1756795728878,0.83836704,110500.0,110490.0,0.76058209]
[1756795729784,0.371,110500.0,110490.0,0.76058209]
[1756795729985,0.83836704,110500.0,110490.0,0.76058209]
[1756795731586,0.83836704,110500.0,110490.0,0.52689857]
[1756795733587,0.83836704,110500.0,110490.0,0.76058209]
[1756795734091,0.83836704,110500.0,110490.0,0.52689857]
[1756795734285,1.08836704,110500.0,110490.0,0.08541857]
[1756795734783,1.08836704,110500.0,110490.0,0.00452]
[1756795735290,1.08836704,110500.0,110490.0,0.06942532]
[1756795736589,1.08836704,110500.0,110490.0,0.00452]
[1756795737481,1.08836704,110500.0,110490.0,0.02791]
[1756795739189,0.83836704,110500.0,110490.0,0.02791]
[1756795739784,0.83836704,110500.0,110490.0,0.00452]
[1756795740193,1.68285056,110500.0,110490.0,0.00452]
[1756795740490,2.52705056,110500.0,110490.0,0.00452]
[1756795742590,2.29336704,110500.0,110490.0,0.00452]
[1756795742784,1.44916704,110500.0,110490.0,0.00452]
[1756795742990,2.29332704,110500.0,110490.0,0.00452]
[1756795743781,2.29332704,110500.0,110490.0,0.02791]
[1756795744091,2.29332704,110500.0,110490.0,0.08554]
[1756795745989,2.29332704,110500.0,110490.0,0.05162]
[1756795746686,2.29332704,110500.0,110490.0,0.00452]
[1756795749084,1.44916704,110500.0,110490.0,0.00452]
[1756795749285,2.29324704,110500.0,110490.0,0.00452]
[1756795752192,2.52693056,110500.0,110490.0,0.00452]
[1756795753392,1.68285056,110500.0,110490.0,0.00452]
[1756795753587,2.29312704,110500.0,110490.0,0.00452]
[1756795754390,2.29312704,110500.0,110490.0,0.05011]
[1756795754582,2.29312704,110500.0,110490.0,0.00452]
[1756795758895,2.27681056,110500.0,110490.0,0.00452]
[1756795759095,2.52681056,110500.0,110480.0,0.06490532]
[1756795759298,0.84644292,110490.0,110470.0,0.06490532]
[1756795759487,1.31120704,110480.0,110470.0,0.14582532]
[1756795759687,1.65120704,110480.0,110470.0,0.14582532]
[1756795760191,1.18384,110480.0,110470.0,0.14582532]
[1756795760396,1.65020704,110480.0,110470.0,0.14582532]
[1756795761304,1.65116704,110480.0,110470.0,0.14582532]
[1756795761601,1.65016704,110480.0,110470.0,0.14582532]
[1756795762397,1.65016704,110480.0,110470.0,0.14782532]
[1756795762798,1.65016704,110480.0,110470.0,0.14982532]
[1756795763097,1.72176748,110480.0,110470.0,0.14982532]
[1756795763490,1.48819204,110480.0,110470.0,0.14982532]
[1756795766001,1.48819204,110480.0,110470.0,0.11449532]
[1756795766201,1.48819204,110480.0,110470.0,0.14982532]
[1756795767304,1.48819204,110480.0,110470.0,0.06890532]
[1756795768995,1.48919204,110480.0,110470.0,0.06490532]
[1756795771607,1.48919204,110480.0,110470.0,0.08751532]
[1756795773908,1.48919204,110480.0,110470.0,0.06490532]
[1756795776906,0.64539204,110480.0,110470.0,0.11287532]
[1756795777111,1.48883204,110480.0,110470.0,0.14927532]
[1756795780318,1.25504044,110480.0,110470.0,0.14927532]
[1756795780520,1.48883204,110480.0,110470.0,0.14927532]
[1756795780916,1.48883204,110480.0,110470.0,0.08437]
[1756795783314,1.48883204,110480.0,110470.0,0.04797]
[1756795783520,0.64539204,110480.0,110470.0,0.04797]
[1756795783718,1.48867204,110480.0,110470.0,0.04797]
[1756795784918,1.48867204,110480.0,110460.0,0.48691532]
[1756795785109,0.2337916,110470.0,110460.0,0.51007532]
[1756795785315,0.5937916,110470.0,110460.0,0.51007532]
[1756795785511,0.5937916,110470.0,110460.0,0.14927532]
[1756795787127,0.5937916,110470.0,110460.0,0.11287532]
[1756795787914,0.5937916,110470.0,110460.0,0.14927532]
[1756795788426,0.60265932,110470.0,110460.0,0.14927532]
[1756795789125,0.60365932,110470.0,110460.0,0.14927532]
[1756795790326,0.60365932,110470.0,110460.0,0.11287532]
[1756795790522,0.60365932,110470.0,110460.0,0.14927532]
[1756795790917,1.19825092,110470.0,110460.0,0.06490532]
[1756795791316,1.19825092,110470.0,110450.0,0.11291532]
[1756795791519,1.6714232,110460.0,110450.0,0.11291532]
[1756795791719,1.9914232,110460.0,110450.0,0.11291532]
[1756795793829,1.7576316,110460.0,110450.0,0.11291532]
[1756795794218,0.9145916,110460.0,110450.0,0.11291532]
[1756795794424,1.7575516,110460.0,110450.0,0.14931532]
[1756795794829,1.9913432,110460.0,110450.0,0.08810532]
[1756795795029,1.9913432,110460.0,110450.0,0.11291532]
[1756795795228,1.7575516,110460.0,110450.0,0.14931532]
[1756795798837,1.7575516,110460.0,110450.0,0.11291532]
[1756795799040,0.9145916,110460.0,110450.0,0.14931532]
[1756795799232,1.7575116,110460.0,110450.0,0.14931532]
[1756795801435,0.9145916,110460.0,110450.0,0.14931532]
[1756795801642,1.7573916,110460.0,110450.0,0.14931532]
[1756795802340,1.9911832,110460.0,110450.0,0.11291532]
[1756795802739,1.9911832,110460.0,110450.0,0.14931532]
[1756795802934,1.5236,110460.0,110450.0,0.14931532]
[1756795803239,1.9911832,110460.0,110450.0,0.14931532]
[1756795804138,1.9911832,110460.0,110450.0,0.11291532]
[1756795804738,1.9911832,110460.0,110450.0,0.08810532]
[1756795805634,1.9911832,110460.0,110450.0,0.06494532]
[1756795806438,1.6303832,110460.0,110450.0,0.06494532]
[1756795806647,1.9911832,110460.0,110450.0,0.06494532]
[1756795807240,2.2411832,110460.0,110450.0,0.06494532]
[1756795807439,2.2411832,110460.0,110450.0,4e-05]
[1756795807638,2.25959702,110460.0,110450.0,4e-05]
[1756795810046,2.26059702,110460.0,110450.0,4e-05]
[1756795811446,2.26039702,110460.0,110450.0,0.02325]
[1756795812850,2.26039702,110460.0,110450.0,4e-05]
[1756795813047,2.26039702,110460.0,110450.0,0.02325]
[1756795813347,1.41779702,110460.0,110450.0,0.02325]
[1756795813542,2.26039702,110460.0,110450.0,0.02325]
[1756795814249,2.26039702,110460.0,110450.0,0.04821]
[1756795815045,1.18193382,110460.0,110450.0,0.10015]
[1756795815243,1.41572542,110460.0,110450.0,0.16505532]
[1756795815849,1.41568542,110460.0,110450.0,0.16505532]
[1756795816050,1.41568542,110460.0,110450.0,0.52585532]
[1756795816848,0.57320542,110460.0,110450.0,0.52585532]
[1756795817044,1.41568542,110460.0,110450.0,0.52585532]
[1756795818251,0.57320542,110460.0,110450.0,0.52585532]
[1756795818445,1.41564542,110460.0,110450.0,0.52585532]
[1756795818647,0.321,110460.0,110450.0,0.77585532]
[1756795819151,0.321,110460.0,110450.0,0.81197611]
[1756795823453,0.55483236,110460.0,110450.0,1.04580847]
[1756795824343,0.55483236,110460.0,110450.0,0.81197611]
[1756795825352,0.78866472,110460.0,110450.0,0.81197611]
[1756795825653,0.78866472,110460.0,110450.0,0.81649611]
[1756795826450,0.78866472,110460.0,110450.0,0.73559754]
[1756795829551,0.321,110460.0,110450.0,0.73559754]
[1756795829756,0.78866472,110460.0,110450.0,0.73559754]
[1756795830653,0.78866472,110460.0,110450.0,0.81649611]
[1756795830857,0.321,110460.0,110450.0,0.81649611]
[1756795831360,0.55483236,110460.0,110450.0,0.81649611]
[1756795831553,0.55483236,110460.0,110450.0,1.05032847]
[1756795835856,0.55483236,110460.0,110450.0,1.05941829]
[1756795836562,0.55483236,110460.0,110450.0,1.05032847]
[1756795836959,0.321,110460.0,110450.0,1.05032847]
[1756795837162,0.55483236,110460.0,110450.0,1.05032847]
[1756795839954,0.55483236,110460.0,110450.0,1.89200847]
[1756795840156,0.55483236,110460.0,110450.0,1.87597896]
[1756795841361,0.55483236,110460.0,110450.0,1.6421466]
[1756795841563,0.55483236,110460.0,110450.0,1.87597896]
[1756795841763,0.321,110460.0,110450.0,1.87597896]
[1756795841951,0.55483236,110460.0,110450.0,1.87597896]
[1756795842768,0.55483236,110460.0,110450.0,0.8004666]
[1756795842958,0.55483236,110460.0,110450.0,1.87589896]
[1756795843969,0.55483236,110460.0,110450.0,1.6420666]
[1756795844267,0.55483236,110460.0,110450.0,1.87589896]
[1756795844467,0.321,110460.0,110450.0,1.87589896]
[1756795844669,0.55483236,110460.0,110450.0,1.87589896]
[1756795844868,0.78866472,110460.0,110450.0,1.87589896]
[1756795845563,0.78866472,110460.0,110450.0,0.8004666]
[1756795845763,0.55483236,110460.0,110450.0,1.87585896]
[1756795846073,0.55483236,110460.0,110450.0,1.8109899]
[1756795846374,0.55483236,110460.0,110450.0,1.87595497]
[1756795846672,0.78866472,110460.0,110450.0,1.87591497]
[1756795847073,0.78866472,110460.0,110450.0,1.8109499]
[1756795849773,0.78866472,110460.0,110450.0,0.73559754]
[1756795849972,0.78866472,110460.0,110450.0,1.8108699]
[1756795851277,0.55483236,110460.0,110450.0,1.8108699]
[1756795855071,23.55483236,110460.0,110450.0,1.8108699]
[1756795857478,23.55483236,110460.0,110450.0,1.92384921]
[1756795859275,23.55483236,110460.0,110450.0,1.67384921]
[1756795860082,0.55483236,110460.0,110450.0,1.67384921]
[1756795861782,0.55483236,110460.0,110450.0,1.44001685]
[1756795861981,0.55483236,110460.0,110450.0,1.67384921]
[1756795862788,0.321,110460.0,110450.0,1.84572424]
[1756795863084,0.31348,110460.0,110450.0,2.48523166]
[1756795863285,0.31348,110460.0,110450.0,2.56656028]
[1756795863687,0.31348,110460.0,110450.0,2.48523166]
[1756795863888,0.001,110460.0,110450.0,2.48523166]
[1756795864486,0.23483236,110460.0,110450.0,1.65777176]
[1756795864692,0.23483236,110460.0,110450.0,1.89156412]
[1756795864893,0.23383236,110460.0,110450.0,1.89156412]
[1756795865094,0.02,110460.0,110450.0,1.89156412]
[1756795865698,0.02,110460.0,110450.0,1.8103099]
[1756795865898,0.02,110460.0,110450.0,1.40774311]
[1756795865899,0.78766472,110460.0,110450.0,1.40774311]
[1756795866098,0.78866472,110460.0,110450.0,1.40774311]
[1756795866401,0.78866472,110460.0,110450.0,0.48559754]
[1756795866603,0.78866472,110460.0,110450.0,1.40770311]
[1756795867995,1.03866472,110460.0,110450.0,0.56686311]
[1756795868197,1.63329708,110460.0,110450.0,0.08974821]
[1756795870501,1.63329708,110460.0,110450.0,0.02468754]
[1756795872698,2.47405708,110460.0,110450.0,0.02468754]
[1756795872907,1.63329708,110460.0,110450.0,0.02468754]
[1756795873110,2.24022472,110460.0,110450.0,0.02468754]
[1756795873293,2.24022472,110460.0,110450.0,0.04758754]
[1756795873806,25.24022472,110460.0,110450.0,0.04758754]
[1756795875207,25.24022472,110460.0,110450.0,0.02468754]
[1756795875405,25.47405708,110460.0,110450.0,0.02468754]
[1756795877108,25.49207248,110460.0,110450.0,0.00456]
[1756795880813,25.49199248,110460.0,110450.0,0.00456]
[1756795885610,25.25839588,110460.0,110450.0,0.00456]
[1756795888718,25.24234612,110460.0,110430.0,0.06506067]
[1756795888917,0.3608,110440.0,110430.0,0.08796067]
[1756795889222,1.74527024,110440.0,110430.0,0.08346]
[1756795890024,0.90475024,110440.0,110430.0,0.08446]
[1756795890324,1.51132,110440.0,110430.0,0.08646]
[1756795890625,1.74527024,110440.0,110430.0,0.08646]
[1756795892324,1.74527024,110440.0,110430.0,0.08446]
[1756795892525,1.74527024,110440.0,110430.0,0.08546]
[1756795893125,1.74527024,110440.0,110430.0,0.08446]
[1756795897229,1.74531024,110440.0,110430.0,0.08446]
[1756795898030,0.90475024,110440.0,110430.0,0.08446]
[1756795898231,1.74531024,110440.0,110430.0,0.08446]
[1756795900732,0.90475024,110440.0,110430.0,0.08446]
[1756795900930,1.74531024,110440.0,110430.0,0.08446]
[1756795901128,1.74531024,110440.0,110430.0,0.001]
[1756795901432,1.74531024,110440.0,110430.0,0.04917]
[1756795901933,1.74531024,110440.0,110430.0,0.08414]
[1756795903731,1.74531024,110440.0,110430.0,0.04917]
[1756795903929,1.74531024,110440.0,110430.0,0.001]
[1756795904836,1.74531024,110440.0,110430.0,0.02583]
[1756795905635,1.74531024,110440.0,110430.0,0.001]
[1756795906437,1.74531024,110440.0,110430.0,0.02583]
[1756795906630,1.74531024,110440.0,110430.0,0.04917]
[1756795907736,1.74531024,110440.0,110430.0,0.001]
[1756795907934,1.97926048,110440.0,110430.0,0.001]
[1756795908631,2.00005362,110440.0,110430.0,0.001]
[1756795910438,2.00005362,110440.0,110410.0,0.44394]
[1756795910640,0.23395024,110420.0,110410.0,0.44394]
[1756795910839,1.41443024,110420.0,110410.0,0.44394]
[1756795912140,0.57395024,110420.0,110410.0,0.44494]
[1756795912332,1.42346269,110420.0,110410.0,0.44594]
[1756795912836,1.42346269,110420.0,110410.0,0.44494]
[1756795913043,1.42346269,110420.0,110410.0,0.44594]
[1756795915347,0.58298269,110420.0,110410.0,0.52720557]
[1756795915543,1.42342269,110420.0,110410.0,0.52720557]
[1756795918448,1.42342269,110420.0,110410.0,0.44594]
[1756795918842,1.42342269,110420.0,110410.0,0.52746886]
[1756795920546,1.42342269,110420.0,110410.0,0.44594]
[1756795924238,1.42342269,110420.0,110410.0,0.55891931]
[1756795926657,1.42342269,110420.0,110410.0,0.44594]
[1756795929852,1.42342269,110420.0,110410.0,0.08514]
[1756795930045,1.42342269,110420.0,110410.0,0.44594]
[1756795931755,1.42342269,110420.0,110410.0,0.52747952]
[1756795932656,1.49761903,110420.0,110410.0,0.44594]
[1756795933159,1.26366879,110420.0,110410.0,0.44594]
[1756795933360,1.49761903,110420.0,110410.0,0.44594]
[1756795934356,1.85841903,110420.0,110410.0,0.002]
[1756795934554,1.85841903,110420.0,110410.0,0.08353127]
[1756795934751,2.10841903,110420.0,110410.0,0.08353127]
[1756795935453,2.10813903,110420.0,110410.0,0.08353127]
[1756795935756,2.10813903,110420.0,110410.0,0.08253127]
[1756795936559,2.10813903,110420.0,110410.0,0.001]
[1756795937262,2.10813903,110420.0,110400.0,0.49674127]
[1756795937455,0.23395024,110410.0,110400.0,0.54469127]
[1756795937757,0.57395024,110410.0,110400.0,0.54469127]
[1756795938362,0.57395024,110410.0,110400.0,0.54569127]
[1756795939158,0.57395024,110410.0,110400.0,0.54669127]
[1756795940154,0.57395024,110410.0,110400.0,0.54569127]
[1756795940355,0.57395024,110410.0,110400.0,0.54669127]
[1756795945460,0.57406688,110410.0,110400.0,0.54669127]
[1756795945862,0.57406688,110410.0,110400.0,0.78075815]
[1756795946261,0.57406688,110410.0,110400.0,0.77623815]
[1756795946957,0.57406688,110410.0,110400.0,0.54217127]
[1756795947159,0.57406688,110410.0,110400.0,0.54669127]
[1756795956962,0.34,110410.0,110400.0,0.54669127]
[1756795957158,0.57406688,110410.0,110400.0,0.54669127]
[1756795958861,0.34,110410.0,110400.0,0.54669127]
[1756795959062,0.30826322,110420.0,110400.0,1.35640815]
[1756795959260,0.54406688,110420.0,110410.0,0.76089815]
[1756795959461,0.54406688,110420.0,110410.0,1.51908688]
[1756795959655,0.54406688,110420.0,110410.0,1.60061815]
[1756795959861,0.54406688,110420.0,110410.0,1.85061815]
[1756795960066,0.54406688,110420.0,110410.0,1.61655127]
[1756795960264,0.54406688,110420.0,110410.0,1.85061815]
[1756795960967,0.12,110420.0,110410.0,1.96359746]
[1756795961155,0.12,110420.0,110410.0,1.88206619]
[1756795962470,0.12,110420.0,110410.0,1.89126416]
[1756795962668,0.12,110420.0,110410.0,1.65711728]
[1756795962876,0.12,110420.0,110410.0,1.89118416]
[1756795964970,0.12,110420.0,110410.0,1.04234619]
[1756795965170,0.35406688,110420.0,110410.0,1.88186619]
[1756795965370,0.35406688,110420.0,110410.0,1.04234619]
[1756795965674,0.35406688,110420.0,110410.0,1.99186619]
[1756795966172,0.35606688,110420.0,110410.0,1.99186619]
[1756795966559,0.35606688,110420.0,110410.0,1.15234619]
[1756795966777,0.35606688,110420.0,110410.0,1.99182619]
[1756795967770,0.35606688,110420.0,110410.0,1.87884688]
[1756795968175,0.35606688,110420.0,110410.0,1.88336688]
[1756795968867,0.23356641,110420.0,110410.0,1.88336688]
[1756795969171,0.23606688,110420.0,110410.0,1.88336688]
[1756795971372,0.23606688,110420.0,110410.0,1.96460628]
[1756795971872,0.23606688,110420.0,110410.0,2.03460628]
[1756795972573,0.002,110420.0,110410.0,2.03460628]
[1756795972867,0.23606688,110420.0,110410.0,2.03460628]
[1756795974271,0.23606688,110420.0,110410.0,1.11388688]
[1756795974574,0.23606688,110420.0,110410.0,1.88316688]
[1756795975577,0.23606688,110420.0,110410.0,0.79388688]
[1756795975775,0.23606688,110420.0,110410.0,1.63312688]
[1756795976279,0.23606688,110420.0,110410.0,1.71436518]
[1756795976577,0.23606688,110420.0,110410.0,1.60436518]
[1756795977479,0.23606688,110420.0,110410.0,1.52312688]
[1756795978278,0.002,110420.0,110410.0,1.52312688]
[1756795979080,0.002,110420.0,110410.0,2.13719376]
[1756795979280,0.002,110420.0,110410.0,1.63610619]
[1756795980582,0.004,110420.0,110410.0,1.63610619]
[1756795982482,0.004,110420.0,110410.0,1.52312688]
[1756795983383,0.004,110420.0,110410.0,0.68388688]
[1756795983584,0.004,110420.0,110410.0,1.52292688]
[1756795985889,0.004,110420.0,110410.0,1.63590619]
[1756795987490,0.004,110420.0,110410.0,1.52292688]
[1756795987693,0.004,110420.0,110410.0,1.52280688]
[1756795988087,0.004,110420.0,110410.0,1.63578619]
[1756795990093,0.23806688,110420.0,110410.0,1.28866]
[1756795990297,0.004,110420.0,110410.0,1.52272688]
[1756795990591,0.23806688,110420.0,110410.0,1.52272688]
[1756795991088,0.23806688,110420.0,110410.0,1.28866]
[1756795991291,0.23806688,110420.0,110410.0,1.52272688]
[1756795993501,0.004,110420.0,110410.0,1.52272688]
[1756795993794,0.23806688,110420.0,110410.0,1.52272688]
[1756795994297,0.004,110420.0,110410.0,1.52272688]
[1756795995890,0.004,110420.0,110410.0,1.63272688]
[1756795997892,0.004,110420.0,110410.0,1.65290266]
[1756795998297,0.004,110420.0,110410.0,1.74346626]
[1756795998594,0.25251994,110450.0,110410.0,2.63809674]
[1756795998794,0.32,110450.0,110440.0,0.68013688]
[1756795998999,0.55406688,110450.0,110440.0,1.60023148]
[1756795999398,0.55406688,110450.0,110440.0,1.62036061]
[1756795999894,0.55606688,110450.0,110440.0,1.62036061]
[1756796000301,0.56006688,110450.0,110440.0,1.62488061]
[1756796001203,0.56106688,110450.0,110440.0,1.62488061]
[1756796001802,0.56006688,110450.0,110440.0,1.62488061]
[1756796001997,0.56406688,110450.0,110440.0,1.62488061]
[1756796002496,0.56406688,110450.0,110440.0,1.54338601]
[1756796003301,1.06659473,110450.0,110440.0,0.11780143]
[1756796003692,0.83252785,110450.0,110440.0,0.11780143]
[1756796004099,0.83252785,110450.0,110440.0,0.15487143]
[1756796007404,0.83239085,110450.0,110440.0,0.15487143]
[1756796007805,0.59846097,110450.0,110440.0,0.15487143]
[1756796008205,0.83239085,110450.0,110440.0,0.15487143]
[1756796010418,0.83039085,110450.0,110440.0,0.15487143]
[1756796010603,0.82939085,110450.0,110440.0,0.15487143]
[1756796018014,0.59546097,110450.0,110440.0,0.15487143]
[1756796018312,0.82939085,110450.0,110440.0,0.15487143]
[1756796023815,0.59546097,110450.0,110440.0,0.15487143]
[1756796024010,0.82939085,110450.0,110440.0,0.08979]
[1756796024410,1.19019085,110450.0,110440.0,0.08979]
[1756796024718,1.18719085,110450.0,110440.0,0.15489126]
[1756796025215,1.18719085,110450.0,110440.0,0.08979]
[1756796025721,0.95326097,110450.0,110440.0,0.08979]
[1756796025922,1.18719085,110450.0,110440.0,0.08979]
[1756796026218,1.18719085,110450.0,110440.0,0.15490311]
[1756796027812,0.82639085,110450.0,110440.0,0.15490311]
[1756796028220,0.82639085,110450.0,110440.0,0.08979]
[1756796028417,0.82639085,110450.0,110440.0,0.15494466]
[1756796029320,0.82639085,110450.0,110440.0,0.11787466]
[1756796030019,0.82639085,110450.0,110440.0,0.06967466]
[1756796030414,1.18719085,110450.0,110440.0,0.0860146]
[1756796030615,1.18719085,110450.0,110440.0,0.15117661]
[1756796031015,1.18719085,110450.0,110440.0,0.06968201]
[1756796032519,2.02471085,110450.0,110440.0,0.09258201]
[1756796033321,2.02471085,110450.0,110440.0,0.06968201]
[1756796035524,2.02471085,110450.0,110440.0,0.09258201]
[1756796038725,2.02471085,110450.0,110440.0,0.06968201]
[1756796039022,1.77471085,110450.0,110440.0,0.06968201]
[1756796042526,2.02471085,110450.0,110440.0,0.06968201]
[1756796043628,2.02471085,110450.0,110440.0,0.00452]
[1756796047726,1.79078097,110450.0,110440.0,0.00452]
[1756796047926,1.79034097,110450.0,110440.0,0.05169]
[1756796048229,2.02427085,110450.0,110440.0,0.05169]
[1756796050230,2.02423085,110450.0,110440.0,0.08727]
[1756796051523,2.02423085,110450.0,110440.0,0.05169]
[1756796054034,2.02423085,110450.0,110440.0,0.08727]
[1756796054734,2.02423085,110450.0,110440.0,0.05169]
[1756796056336,2.02423085,110450.0,110440.0,0.11685201]
[1756796057536,2.02403085,110450.0,110440.0,0.11685201]
[1756796058835,1.18719085,110450.0,110440.0,0.11685201]
[1756796059038,2.02395085,110450.0,110440.0,0.11685201]
[1756796059227,2.02395085,110450.0,110440.0,0.15243201]
[1756796059829,2.02395085,110450.0,110440.0,0.11685201]
[1756796060436,2.02395085,110450.0,110440.0,0.05169]
[1756796064647,2.02395085,110450.0,110440.0,0.11685201]
[1756796065247,2.02395085,110450.0,110440.0,0.06968201]
[1756796065545,2.02395085,110450.0,110440.0,0.09266201]
[1756796066140,2.04475778,110450.0,110440.0,0.0275]
[1756796066535,0.95799778,110450.0,110440.0,0.08727]
[1756796066739,1.79459778,110450.0,110440.0,0.08727]
[1756796067248,1.79459778,110450.0,110440.0,0.05169]
[1756796067455,2.02855468,110450.0,110440.0,0.05169]
[1756796069254,1.19195468,110450.0,110440.0,0.05169]
[1756796069454,2.02843468,110450.0,110440.0,0.05169]
[1756796069655,2.02843468,110450.0,110440.0,0.08727]
[1756796070549,2.02843468,110450.0,110440.0,0.05169]
[1756796072156,1.66763468,110450.0,110440.0,0.05169]
[1756796072456,2.02843468,110450.0,110440.0,0.05169]
[1756796075458,2.00762775,110450.0,110440.0,0.11685201]
[1756796076558,2.00762775,110450.0,110440.0,0.15256201]
[1756796076758,1.43349452,110450.0,110440.0,0.3374]
[1756796077060,1.41268436,110450.0,110440.0,0.3374]
[1756796077562,0.57640436,110450.0,110440.0,0.3374]
[1756796077857,0.34246097,110450.0,110440.0,1.23124879]
[1756796078058,0.34246097,110450.0,110440.0,0.93214339]
[1756796078246,0.57640436,110450.0,110440.0,0.93214339]
[1756796078444,0.57640436,110450.0,110440.0,1.01363799]
[1756796078849,0.57540436,110450.0,110440.0,1.01363799]
[1756796079756,0.57440436,110450.0,110440.0,1.01363799]
[1756796081661,0.34046097,110450.0,110440.0,1.01363799]
[1756796081863,0.57440436,110450.0,110440.0,1.01363799]
[1756796082161,0.57440436,110450.0,110440.0,0.93214339]
[1756796086964,0.57440436,110450.0,110440.0,0.57134339]
[1756796087157,0.57440436,110450.0,110440.0,0.93214339]
[1756796088359,0.57440436,110450.0,110440.0,1.01363799]
[1756796094168,0.57440436,110450.0,110440.0,0.93214339]
[1756796094661,0.57440436,110450.0,110440.0,0.99715154]
[1756796095259,0.57440436,110450.0,110440.0,0.93214339]
[1756796095661,0.57440436,110450.0,110440.0,0.99715018]
[1756796095869,0.55594339,110450.0,110440.0,0.99715018]
[1756796096470,0.322,110450.0,110440.0,0.99715018]
[1756796096763,0.55394339,110450.0,110440.0,0.99715018]
[1756796097670,0.55494339,110450.0,110440.0,0.99715018]
[1756796098776,0.55594339,110450.0,110440.0,0.99715018]
[1756796099163,0.322,110450.0,110440.0,0.98109357]
[1756796099671,0.322,110450.0,110440.0,0.91608678]
[1756796100370,0.32,110450.0,110440.0,0.91608678]
[1756796100572,0.32,110450.0,110440.0,1.16608678]
[1756796100973,0.32,110450.0,110440.0,1.75003017]
[1756796101273,0.01803152,110470.0,110440.0,1.92206327]
[1756796101468,0.39803152,110470.0,110460.0,0.91240678]
[1756796101667,0.39803152,110470.0,110460.0,0.97741974]
[1756796101877,0.39803152,110470.0,110460.0,1.57879635]
[1756796102066,0.63197491,110470.0,110460.0,0.74347635]
[1756796102268,0.63197491,110470.0,110460.0,1.34497296]
[1756796102774,0.63197491,110470.0,110460.0,0.50953296]
[1756796102972,0.63197491,110470.0,110460.0,1.34945296]
[1756796103275,0.63397491,110470.0,110460.0,1.34945296]
[1756796103475,0.63597491,110470.0,110460.0,1.34945296]
[1756796106577,0.63597491,110470.0,110460.0,1.58339635]
[1756796107470,0.63597491,110470.0,110460.0,1.58327635]
[1756796107974,0.63597491,110470.0,110460.0,1.34933296]
[1756796110475,0.63597491,110470.0,110460.0,1.58327635]
[1756796110774,0.40203152,110470.0,110460.0,1.58327635]
[1756796110974,0.63597491,110470.0,110460.0,1.58327635]
[1756796111678,0.40203152,110470.0,110460.0,2.17801974]
[1756796112882,0.384,110470.0,110460.0,2.80333285]
[1756796113068,0.384,110470.0,110460.0,3.1422512]
[1756796113272,0.384,110470.0,110460.0,3.07727624]
[1756796113472,0.004,110470.0,110460.0,3.05727624]
[1756796113674,0.004,110470.0,110460.0,2.70727624]
[1756796113976,0.004,110470.0,110460.0,2.55482745]
[1756796114286,0.004,110470.0,110460.0,1.95349084]
[1756796114585,0.004,110470.0,110460.0,2.71043624]
[1756796114882,0.004,110470.0,110460.0,2.47649285]
[1756796115285,0.004,110470.0,110460.0,2.55762192]
[1756796115485,0.004,110470.0,110460.0,2.79156531]
[1756796115684,0.004,110470.0,110460.0,3.16156531]
[1756796116184,0.004,110470.0,110460.0,3.08043624]
[1756796116490,0.004,110470.0,110460.0,2.84649285]
[1756796117078,0.004,110470.0,110460.0,3.08043624]
[1756796117278,0.002,110470.0,110460.0,3.08143624]
[1756796117787,0.31375642,110500.0,110470.0,0.0905125]